[Event "Charlotte Summer IM B 2022"]
[Site "Charlotte"]
[Date "2022.07.26"]
[Round "4.2"]
[White "Wang, Tianqi"]
[Black "Ringoir, Tanguy"]
[Result "1/2-1/2"]
[ECO "D85"]
[WhiteElo "2402"]
[BlackElo "2490"]
[Annotator "TA"]
[PlyCount "34"]
[EventDate "2022.07.24"]
[EventType "tourn"]
[EventCountry "USA"]
[SourceTitle "playchess.com"]
[Source "ChessBase"]
[SourceQuality "1"]
[TimeControl "5400+30"]

{[%evp 9,34,15,56,16,13,22,21,11,18,14,21,25,12,16,8,14,20,7,7,7,7,5,16,9,6,9,4]} 1. d4 {[%emt 0:05:37]} Nf6 {[%emt 0:00:05]} 2. c4 {[%emt 0:00:14]} g6 {[%emt 0:00:05]} 3. Nc3 {[%emt 0:00:17]} d5 {[%emt 0:00:06]} 4. cxd5 {[%emt 0:00:10]} Nxd5 {[%emt 0:00:06]} 5. Bd2 {[%emt 0:00:07][%cal Bc1d2,Bd2c3,Bc3d4][%mdl 32]} c5 {[%emt 0:00:15]} 6. e4 {[%emt 0:00:19] D85: Exchange Grünfeld: Unusual White 7th moves and lines with 7 Nf3.} Nxc3 {[%emt 1:32:53]} 7. Bxc3 {[%emt 0:00:08]} cxd4 {[%emt 0:00:00]} 8. Bxd4 {[%emt 0:00:25]} e5 {[%emt 0:00:00]} 9. Bxe5 {[%emt 0:00:10]} Bb4+ {[%emt 0:00:00]} 10. Bc3 {[%emt 0:00:10]} Bxc3+ {[%emt 0:00:00]} 11. bxc3 {[%emt 0:00:07] The position is equal.} Qa5 {[%emt 0:00:00]} 12. Ne2 {[%emt 0:00:12]} Be6 {[%emt 0:00:00] [#]} 13. Qd4 $146 {[%emt 0:00:14]} ({Predecessor:} 13. Qd2 O-O 14. Nd4 Rd8 15. Be2 Nc6 16. Nxc6 bxc6 17. Qe3 Qb6 18. Qxb6 axb6 19. a3 {½-½ (32) Goryachkina,A (2593)-Chigaev,M (2631) Sochi 2021}) 13... O-O {[%emt 0:00:00]} 14. Nf4 {[%emt 0:00:07]} Nc6 {[%emt 0:00:00]} 15. Qe3 {[%emt 0:00:23]} Nd8 {[%emt 0:00:00]} 16. Be2 {[%emt 0:00:10]} Rc8 {[%emt 0:00:00]} 17. O-O {[%emt 0:00:12]} Rxc3 {[%emt 0:00:00] An interesting draw.  Weighted Error Value: White=0.06 (flawless) /Black=0.04 (flawless)} 1/2-1/2

[Event "Charlotte Summer IM B 2022"]
[Site "Charlotte"]
[Date "2022.07.26"]
[Round "4.3"]
[White "Eckert, Doug"]
[Black "Adu, Oladapo"]
[Result "1/2-1/2"]
[ECO "D30"]
[WhiteElo "2177"]
[BlackElo "2056"]
[Annotator "TA"]
[PlyCount "81"]
[EventDate "2022.07.24"]
[EventType "tourn"]
[EventCountry "USA"]
[SourceTitle "playchess.com"]
[Source "ChessBase"]
[SourceQuality "1"]
[TimeControl "5400+30"]

{[%evp 9,81,12,23,20,11,29,21,13,18,8,29,10,20,-17,0,0,0,0,7,22,28,0,0,-65,-7,-43,-38,-47,-64,-27,-35,-102,0,0,53,33,41,31,79,65,111,47,45,31,22,40,91,74,85,0,0,0,0,0,47,21,216,18,20,7,20,50,581,581,581,573,570,564,546,0,0,0,517,0]} 1. d4 {[%emt 0:02:55]} d5 {[%emt 0:01:37][%cal Bd7d5,Bd5c4][%mdl 32]} 2. c4 {[%emt 0:00:07]} e6 {[%emt 0:00:22]} 3. Nf3 {[%emt 0:00:05]} a6 {[%emt 0:00:32]} 4. g3 {[%emt 0:00:13]} dxc4 {[%emt 0:00:39]} 5. Bg2 {[%emt 1:29:40]} Nc6 {[%emt 0:00:24]} 6. O-O {[%emt 0:00:00] D30: Queen's Gambit Declined: Systems without Nc3.} Rb8 {[%emt 0:00:38]} 7. e3 {[%emt 0:00:00]} b5 {[%emt 0:00:25]} 8. b3 {[%emt 0:00:00] The position is equal.} cxb3 $1 {[%emt 0:00:11]} 9. axb3 {[%emt 0:00:00]} Nf6 {[%emt 0:00:08]} 10. Bb2 {[%emt 0:00:00][%mdl 1024] White has compensation.} Bb7 {[%emt 0:00:39]} 11. Qe2 {[%emt 0:00:00]} Be7 {[%emt 0:02:00]} 12. Rc1 {[%emt 0:00:00]} O-O {[%emt 0:00:42]} 13. Nbd2 {[%emt 0:00:00][%cal Bb1d2,Bd2f3,Bf3e5][%mdl 32] [#]} Qd7 $146 {[%emt 0:10:41]} ({Predecessor:} 13... Nb4 14. Ne5 Bxg2 15. Kxg2 Rb6 16. Kg1 Nd7 17. Ne4 f6 18. Nf3 e5 19. dxe5 fxe5 {0-1 (60) Erigaisi,A (2563)-Adhiban,B (2654) Moscow 2020}) 14. Ne1 {[%emt 0:00:00]} Nb4 {[%emt 0:02:49]} 15. Bxb7 {[%emt 0:00:00]} Rxb7 {[%emt 0:00:25]} 16. e4 {[%emt 0:00:00]} (16. Ba3 $11) 16... Qc8 {[%emt 0:06:13]} (16... Ra8 $15) 17. Ndf3 {[%emt 0:00:00]} Qa8 {[%emt 0:12:12]} 18. Ne5 {[%emt 0:00:00]} c5 $1 {[%emt 0:02:48]} 19. dxc5 {[%emt 0:00:00]} Rc7 $1 {[%emt 0:00:29][%csl LRc5,LRe4]} 20. c6 {[%emt 0:00:00]} (20. N1d3 $15 Nxd3 21. Nxd3) 20... Rfc8 {[%emt 0:06:58]} (20... Nxc6 $17 21. Ng4 Nd7) 21. Ba3 $11 {[%emt 0:00:00]} Bf8 {[%emt 0:09:47]} ({Better is} 21... Bd6 $11 22. Nxf7 Kxf7) 22. Bxb4 $14 {[%emt 0:00:00]} Bxb4 {[%emt 0:00:03]} 23. N1f3 {[%emt 0:00:00]} Qa7 {[%emt 0:03:32]} (23... Bd6 $14) 24. Kg2 {[%emt 0:00:00]} (24. Nd3 Bf8 $14) 24... Rb8 {[%emt 0:00:49]} (24... h6 $14) 25. Rd1 {[%emt 0:00:00]} (25. h4 $1 $16) 25... Bc3 {[%emt 0:05:41]} 26. Rac1 {[%emt 0:00:00]} b4 {[%emt 0:00:29]} 27. Qc4 $36 {[%emt 0:03:06][%mdl 2048] Black is under pressure.} h6 {[%emt 0:00:47]} (27... h5 $14) 28. Rd3 {[%emt 0:02:19] White is more active.} Rb5 {[%emt 0:03:34]} 29. Rcxc3 {[%emt 0:00:18]} ({Reject} 29. Rd8+ Kh7 30. Nd3 Qb6 $15) (29. Nd7 $1 $16) 29... bxc3 $11 {[%emt 0:00:12]} 30. Rxc3 {[%emt 0:00:09]} Qb6 {[%emt 0:00:20]} 31. Qd3 {[%emt 0:00:27] Nd7 is the strong threat.} Qa5 {[%emt 0:04:06]} (31... Qb8 $11 {is more appropriate.}) 32. Nc4 {[%emt 0:01:20]} Qa1 $2 {[%emt 0:01:11] [#]} (32... Qb4 $1 $11) 33. Qd8+ $2 {[%emt 0:00:56]} (33. Qd2 $1 $18 {Black must now prevent Rc1.} Nxe4 34. Qd8+ Kh7 35. Re3 (35. Qxc7 Qxc3 36. Qf4 f5 $17) 35... Rxc6 36. Rxe4) 33... Kh7 {[%emt 0:00:01]} 34. Qxc7 {[%emt 0:00:43] Dancing on a razor blade.} Qxc3 {[%emt 0:00:14]} 35. Qxf7 {[%emt 0:03:08]} Rxb3 $2 {[%emt 0:07:33][%mdl 8192]} (35... Rc5 $14) 36. Nfe5 $18 {[%emt 0:00:49] Pair of Knights!} Rb5 {[%emt 0:03:11]} 37. Qxe6 {[%emt 0:01:07] Strongly threatening c7.} (37. c7 Rc5 $11) 37... Rc5 {[%emt 0:00:28] [#]} 38. Qf5+ $1 {[%emt 0:00:12]} Kg8 {[%emt 0:00:20]} 39. Qe6+ $2 {[%emt 0:00:16]} (39. Qc8+ $18 Kh7 40. c7 (40. Qf5+ Kg8 $11) 40... Rxc7 41. Qxc7) 39... Kh7 $1 $11 {[%emt 0:00:14]} 40. Qf5+ $2 {[%emt 0:00:13][%mdl 8192]} (40. f3 $11 Qe1 41. Qf5+ (41. Qf7 Qd1 $11) 41... Kg8 42. Qe6+ Kh7 43. Qf7) 40... Kg8 $18 {[%emt 0:00:10]} 41. Qe6+ $2 {[%emt 0:01:55] Weighted Error Value: White=0.33/Black=0.40} ({Only move:} 41. Qc8+ $18 Kh7 42. c7 Rxc7 43. Qxc7) 1/2-1/2

[Event "Charlotte Summer IM B 2022"]
[Site "Charlotte"]
[Date "2022.07.26"]
[Round "4.4"]
[White "Homa, Seth"]
[Black "Atanasov, Anthony"]
[Result "0-1"]
[ECO "A22"]
[WhiteElo "2237"]
[BlackElo "2172"]
[Annotator "TA"]
[PlyCount "70"]
[EventDate "2022.07.24"]
[EventType "tourn"]
[EventCountry "USA"]
[SourceTitle "playchess.com"]
[Source "ChessBase"]
[SourceQuality "1"]
[TimeControl "5400+30"]

{[%evp 10,70,18,10,7,7,18,12,5,8,46,13,22,6,10,0,25,28,42,40,45,31,67,83,84,79,84,73,81,87,71,57,54,8,64,61,78,19,20,0,35,0,19,-33,-36,-37,-35,-51,-35,-35,-42,-52,-54,-45,-50,-564,-562,-597,-558,-702,-700,-1443,-807]} 1. c4 {[%emt 0:00:05]} Nf6 {[%emt 0:00:04]} 2. Nc3 {[%emt 0:00:17]} d5 {[%emt 0:00:11]} 3. cxd5 {[%emt 0:00:13]} Nxd5 {[%emt 0:00:05]} 4. g3 {[%emt 0:00:14]} e5 {[%emt 0:00:50]} 5. Bg2 {[%emt 0:00:15]} Nb6 {[%emt 0:00:09]} 6. e3 {[%emt 0:00:08]} Nc6 {[%emt 0:01:27][%cal Bb8c6,Bc6b4,Bb4d5,Bd5f6][%mdl 32] A22: English Opening: 1...e5 2 Nc3 Nf6.} 7. Nge2 {[%emt 0:00:14]} Be7 {[%emt 0:00:43] 7...h5 is more advanced technology.} 8. O-O {[%emt 0:00:11]} O-O {[%emt 0:00:26] The position is equal.} 9. f4 {[%emt 0:00:07]} Bd6 {[%emt 0:06:30]} 10. f5 {[%emt 0:00:56] [#]} Be7 $146 {[%emt 0:04:00]} ({Predecessor:} 10... f6 11. Be4 Bd7 12. g4 Rb8 13. Ng3 Qe8 14. b3 Ne7 15. Bb2 Bc6 16. Rc1 Nd7 {½-½ (52) Mandetta,J (2357)-Gauche,C (2251) Florianopolis 2018}) 11. g4 {[%emt 0:04:40]} Nb4 {[%emt 0:04:06]} 12. Ne4 {[%emt 0:00:32][%cal Bc3e4,Be4g3,Bg3h5][%mdl 32]} N4d5 {[%emt 0:07:31]} 13. b3 {[%emt 0:10:44]} Nf6 {[%emt 0:10:36]} 14. N2c3 {[%emt 0:03:29]} c6 {[%emt 0:08:33]} 15. Bb2 {[%emt 0:08:59]} Nbd5 {[%emt 0:02:00]} 16. Nxd5 {[%emt 0:00:20]} cxd5 {[%emt 0:00:23]} 17. Ng3 {[%emt 0:00:11]} Qd6 {[%emt 0:09:52]} 18. g5 {[%emt 0:01:17]} Ne8 {[%emt 0:00:52]} 19. Qh5 {[%emt 0:17:30][%cal Of5f6]} f6 {[%emt 0:04:50]} 20. h4 {[%emt 0:02:20]} Bd7 {[%emt 0:02:19]} 21. Qg4 {[%emt 0:02:21]} (21. a4 $14 {should be considered.} e4 22. g6) 21... Bc6 {[%emt 0:02:52]} (21... fxg5 $11 22. hxg5 g6) 22. Nh5 $14 {[%emt 0:04:45]} Kh8 {[%emt 0:02:42]} 23. d4 {[%emt 0:01:13]} ({White should play} 23. Rf2 $16) 23... e4 $11 {[%emt 0:02:41]} 24. Bh3 {[%emt 0:03:49]} (24. g6 {keeps more tension.} h6 25. Bc3 Nc7 26. Rf2) 24... Bd7 {[%emt 0:01:01] Threatens to win with ...g6.} 25. Qg2 {[%emt 0:00:13]} Rc8 {[%emt 0:01:17][%cal Ba8c8,Bc8c2,Bc2b2][%mdl 32]} 26. Kh1 {[%emt 0:00:24]} (26. g6 $1 $11) 26... fxg5 $15 {[%emt 0:04:50]} 27. hxg5 {[%emt 0:00:10] [#]} Bxg5 {[%emt 0:01:57]} 28. Qxg5 {[%emt 0:11:20] Strongly threatening Rf2.} Rc2 {[%emt 0:00:08][%csl Gc2][%cal Rd6h2] Prevents Rf2.} 29. Rf4 $1 {[%emt 0:00:07]} Rxb2 {[%emt 0:00:40]} 30. Rg1 $1 {[%emt 0:00:03][%cal Rh5g7]} Rf7 $36 {[%emt 0:04:45][%mdl 2048] Black has the initiative.} (30... g6 $2 {[#]} 31. fxg6 $1 Rxf4 32. exf4 $18) 31. f6 $1 {[%emt 0:06:32][%cal Rf6g7]} Bxh3 {[%emt 0:03:03] The board is on fire.} 32. fxg7+ {[%emt 0:00:11][%mdl 8192] This costs White the game.} (32. Nxg7 $15 Qf8 33. Nh5) 32... Kg8 $19 {[%emt 0:00:56] Black is clearly winning.} ({Avoid the trap} 32... Nxg7 $2 33. a4 $19) 33. Rg3 {[%emt 0:05:46] Rxf7 is the strong threat.} Be6 {[%emt 0:02:34]} 34. Qh6 {[%emt 0:06:46][%cal Oh6h7] White wants to mate with Qxh7+!} Rxf4 {[%emt 0:02:22]} 35. exf4 {[%emt 0:00:02]} Qe7 {[%emt 0:02:04] Weighted Error Value: White=0.44/Black=0.09 (flawless)} (35... Bf7 {gets mated.} 36. Qxd6 Rb1+ 37. Kg2 Rb2+ 38. Kh3) 0-1

[Event "Charlotte Summer IM B 2022"]
[Site "Charlotte"]
[Date "2022.07.26"]
[Round "4.5"]
[White "Mishra, Prateek"]
[Black "Kolay, Alex"]
[Result "0-1"]
[ECO "C18"]
[WhiteElo "2204"]
[BlackElo "2188"]
[Annotator "TA"]
[PlyCount "60"]
[EventDate "2022.07.24"]
[EventType "tourn"]
[EventCountry "USA"]
[SourceTitle "playchess.com"]
[Source "ChessBase"]
[SourceQuality "1"]
[TimeControl "5400+30"]

{[%evp 17,60,10,37,3,16,6,8,20,19,27,42,32,23,-19,-20,-52,-38,-139,-140,-162,-143,-134,-132,-183,-154,-133,-94,-327,-292,-409,-400,-413,-414,-517,-512,-560,-541,-656,-504,-1010,-995,-1807,-1660,-1711,-1049]} 1. e4 {[%emt 1:31:00]} e6 {[%emt 0:01:02]} 2. d4 {[%emt 0:00:00]} d5 {[%emt 0:00:18]} 3. Nc3 {[%emt 0:00:00]} Bb4 {[%emt 0:00:08]} 4. e5 {[%emt 0:00:00]} c5 {[%emt 0:00:07]} 5. a3 {[%emt 0:00:00]} Bxc3+ {[%emt 0:00:09]} 6. bxc3 {[%emt 0:00:00]} Ne7 {[%emt 0:00:07]} 7. Qg4 {[%emt 0:00:00]} Qc7 {[%emt 0:00:41]} 8. Qxg7 {[%emt 0:00:00]} Rg8 {[%emt 0:00:05]} 9. Qxh7 {[%emt 0:00:00]} cxd4 {[%emt 0:00:09]} 10. Qd3 {[%emt 0:00:00] C18: French: 3 Nc3 Bb4: Main line: 7 h4 and 7 Qg4.} (10. Ne2 $5 {[%cal Rc3d4]}) 10... Qxe5+ {[%emt 0:03:24]} 11. Ne2 $1 {[%emt 0:00:00]} ({Don't play} 11. Qe2 Qc7 12. Qd3 Qxc3+ 13. Qxc3 dxc3 $15) 11... dxc3 {[%emt 0:00:26]} 12. Qxc3 {[%emt 0:00:00] The position is equal. 12.Qxc3 scores better than 12.Bf4.} (12. h4 {with more complications.} Nbc6 13. Qxc3 d4 14. Qd3) 12... Qxc3+ {[%emt 0:12:59]} 13. Nxc3 {[%emt 0:00:00]} e5 {[%emt 0:00:12]} 14. Rb1 {[%emt 0:00:00] [#]} b6 $146 {[%emt 0:41:43]} ({Predecessor:} 14... Nbc6 15. h4 Bf5 16. Rxb7 d4 17. Na2 Bxc2 18. Nb4 d3 19. Nxc2 dxc2 20. Rb2 Nd4 {1-0 (41) Heimann,A (2609)-Studer,N (2479) Switzerland 2019}) 15. Bb5+ {[%emt 0:00:00]} Nd7 {[%emt 0:02:04]} 16. h4 {[%emt 0:00:00]} Bb7 $1 {[%emt 0:05:51]} 17. Bg5 {[%emt 0:00:00]} (17. Bf1 $15) 17... d4 $17 {[%emt 0:02:47][%csl LRc3,LRg2]} 18. Ne2 {[%emt 0:00:00]} Bxg2 {[%emt 0:03:12]} 19. Rh2 {[%emt 0:00:00]} Bc6 {[%emt 0:08:37]} 20. Bc4 {[%emt 0:00:00]} (20. Bxe7 $17 Bxb5 21. Rxb5 Kxe7 22. h5) 20... Bd5 {[%emt 0:08:12]} 21. Bb5 {[%emt 0:00:00]} Rc8 {[%emt 0:07:14]} 22. Ng3 $2 {[%emt 0:00:00] [#] Now White is beyond hope.} (22. f4 $17) 22... Rxc2 $19 {[%emt 0:02:03][%cal Of7f6] Strongly threatening ...f6!} 23. Nh5 {[%emt 0:00:00]} (23. Ra1 $142) 23... Bc6 {[%emt 0:00:00]} 24. Bd3 {[%emt 0:00:00]} Rc3 {[%emt 0:00:00][%csl LRa3,LRd3][%cal Bc2c3,Bc3a3,Ba3a2][%mdl 32]} 25. Kd2 {[%emt 0:00:00]} e4 {[%emt 0:00:24] Black is clearly winning.} 26. Bf1 {[%emt 0:00:00]} Rxa3 {[%emt 0:00:33] Hoping for ...Ra2+.} 27. Rc1 {[%emt 0:00:00]} Ra2+ {[%emt 0:00:46]} 28. Ke1 {[%emt 0:00:00]} (28. Rc2 $142 Rxc2+ 29. Kxc2) 28... d3 {[%emt 0:00:08][%cal Og8g5] ...Rxg5! is the strong threat.} 29. Rb1 {[%emt 0:00:00] [#]} Rxg5 $1 {[%emt 0:00:46]} 30. hxg5 {[%emt 0:00:00]} Ba4 {[%emt 0:00:06] Weighted Error Value: White=0.92/Black=0.12 (very precise)} 0-1

[Event "Charlotte Summer IM B 2022"]
[Site "Charlotte"]
[Date "2022.07.27"]
[Round "5.1"]
[White "Kolay, Alex"]
[Black "Zaloznyy, Mike"]
[Result "1/2-1/2"]
[ECO "E12"]
[WhiteElo "2188"]
[BlackElo "2171"]
[Annotator "TA"]
[PlyCount "33"]
[EventDate "2022.07.24"]
[EventType "tourn"]
[EventCountry "USA"]
[SourceTitle "playchess.com"]
[Source "ChessBase"]
[SourceQuality "1"]
[TimeControl "5400+30"]

{[%evp 25,33,0,0,0,27,8,16,-61,-53,-72]} 1. d4 {[%emt 0:04:44]} Nf6 {[%emt 0:00:45]} 2. c4 {[%emt 0:00:14]} b6 {[%emt 0:00:12]} 3. Nc3 {[%emt 0:00:43]} Bb7 {[%emt 0:00:11]} 4. a3 {[%emt 0:00:30]} e6 {[%emt 0:02:27]} 5. Nf3 {[%emt 0:00:30]} d5 {[%emt 0:00:51]} 6. cxd5 {[%emt 0:00:12]} Nxd5 {[%emt 0:00:27]} 7. Qc2 {[%emt 0:00:04]} Nxc3 {[%emt 0:01:02]} 8. bxc3 {[%emt 0:00:09]} Be7 {[%emt 0:00:49]} 9. e4 {[%emt 0:00:07]} O-O {[%emt 0:00:16]} 10. Bd3 {[%emt 0:00:06]} c5 {[%emt 0:00:14]} 11. O-O {[%emt 0:00:10]} Qc7 {[%emt 0:00:10]} 12. Qe2 {[%emt 0:00:08]} Rd8 {[%emt 0:00:21]} 13. Bb2 $1 {[%emt 0:00:51] 13.Bb2 scores better than 13.Re1.} Nd7 {[%emt 0:00:14]} 14. Rad1 {[%emt 0:03:54][%cal Od4d5] E12: Queen's Indian: Unusual White 4th moves, 4 a3, 4 Nc3 Bb7 5 a3 and 4 Nc3 Bb7 .} c4 {[%emt 0:00:15]} 15. Bc2 {[%emt 0:33:33]} b5 {[%emt 0:05:12] [#]} 16. e5 $146 {[%emt 0:02:56]} (16. Rb1 $11) ({Predecessor:} 16. Rb1 a6 17. Qe3 e5 18. Rfe1 Rab8 19. h3 Re8 20. a4 exd4 21. Nxd4 bxa4 22. Bxa4 Bc5 23. f3 Bc8 24. Kh1 Rd8 25. e5 Nb6 26. Bc2 Nd5 27. Qe2 Rxb2 {½-½ (27) Arounopoulos,S (2304)-Kolomytchenko,I (2287) ICCF email 2014}) 16... a5 {[%emt 0:02:18]} 17. Nd2 {[%emt 0:10:56] Black took control after the opening.  Weighted Error Value: White=0.34/Black=0.09 (flawless)} 1/2-1/2